fUSD/lending_fUSD_20250610
["ID","MTS","AMOUNT","RATE_DAILY","PERIOD"]
[365195774,1749528633616,-490.0,0.00016602,2]
[365195775,1749528633626,-490.0,0.00016602,2]
[365195776,1749528633635,-490.0,0.00016602,2]
[365195777,1749528633645,-490.0,0.00016602,2]
[365195778,1749528633655,-490.0,0.00016602,2]
[365195779,1749528633664,-490.0,0.00016602,2]
[365195780,1749528633673,-490.0,0.00016602,2]
[365195781,1749528633683,-490.0,0.00016602,2]
[365195782,1749528633695,-586.76,0.00016602,2]
[365195783,1749528633704,-490.0,0.00016602,2]
[365195784,1749528633715,-1928.5,0.00016602,2]
[365195785,1749528633725,-490.0,0.00016602,2]
[365195786,1749528633735,-490.0,0.00016602,2]
[365195787,1749528633744,-490.0,0.00016602,2]
[365195788,1749528633755,-490.0,0.00016602,2]
[365195789,1749528633765,-490.0,0.00016602,2]
[365195790,1749528633774,-415.4568873,0.00016602,2]
[365195791,1749528633785,-490.0,0.00016602,2]
[365195792,1749528633794,-490.0,0.00016602,2]
[365195793,1749528633804,-490.0,0.00016602,2]
[365195794,1749528633814,-500.42,0.00016602,2]
[365195795,1749528633824,-602.11,0.00016602,2]
[365195796,1749528633833,-490.0,0.00016602,2]
[365195797,1749528633842,-490.0,0.00016602,2]
[365195798,1749528633852,-334.94193543,0.00016602,2]
[365195799,1749528633862,-490.0,0.00016602,2]
[365195800,1749528633872,-490.0,0.00016602,2]
[365195801,1749528633881,-534.62,0.00016602,2]
[365195802,1749528633892,-490.0,0.00016602,2]
[365195803,1749528633902,-430.15700314,0.00016602,2]
[365195804,1749528633912,-490.0,0.00016602,2]
[365195805,1749528633921,-490.0,0.00016602,2]
[365195806,1749528633931,-490.0,0.00016602,2]
[365195807,1749528633941,-490.0,0.00016602,2]
[365195808,1749528633951,-490.0,0.00016602,2]
[365195809,1749528633960,-490.0,0.00016602,2]
[365195810,1749528633970,-490.0,0.00016602,2]
[365195811,1749528633979,-469.03264414,0.00016602,2]
[365195812,1749528633988,-490.0,0.00016602,2]
[365195813,1749528633998,-490.0,0.00016602,2]
[365195814,1749528634007,-490.0,0.00016602,2]
[365195815,1749528634017,-490.0,0.00016602,2]
[365195816,1749528634027,-490.0,0.00016602,2]
[365195817,1749528634036,-490.0,0.00016602,2]
[365195818,1749528634045,-490.0,0.00016602,2]
[365195819,1749528634058,-490.0,0.00016602,2]
[365195820,1749528634067,-490.0,0.00016602,2]
[365195821,1749528634077,-490.0,0.00016602,2]
[365195822,1749528634087,-490.0,0.00016602,2]
[365195823,1749528634095,-490.0,0.00016602,2]
[365195824,1749528634105,-338.20221167,0.00016602,2]
[365195825,1749528634115,-490.0,0.00016602,2]
[365195826,1749528634124,-490.0,0.00016602,2]
[365195827,1749528634133,-490.0,0.00016602,2]
[365195828,1749528634143,-528.24423811,0.00016602,2]
[365195829,1749528634154,-490.0,0.00016602,2]
[365195830,1749528634163,-20654.85,0.00016602,2]
[365195831,1749528634173,-490.0,0.00016602,2]
[365195832,1749528634183,-490.0,0.00016602,2]
[365195833,1749528634192,-490.0,0.00016602,2]
[365195834,1749528634202,-480.0,0.00016602,2]
[365195835,1749528634212,-490.0,0.00016602,2]
[365195836,1749528634222,-490.0,0.00016602,2]
[365195837,1749528634232,-480.0,0.00016602,2]
[365195838,1749528634242,-490.0,0.00016602,2]
[365195839,1749528634251,-490.0,0.00016602,2]
[365195840,1749528634261,-490.0,0.00016602,2]
[365195841,1749528634272,-490.0,0.00016602,2]
[365195842,1749528634282,-916.68,0.00016602,2]
[365195843,1749528634292,-536.08410606,0.00016602,2]
[365195844,1749528634302,-547.94377839,0.00016602,2]
[365195845,1749528634312,-490.0,0.00016602,2]
[365195846,1749528634321,-490.0,0.00016602,2]
[365195847,1749528634331,-490.0,0.00016602,2]
[365195848,1749528634340,-490.0,0.00016602,2]
[365195849,1749528634349,-490.0,0.00016602,2]
[365195850,1749528634359,-1238.04,0.00016602,2]
[365195851,1749528634369,-490.0,0.00016602,2]
[365195852,1749528634379,-558.47531772,0.00016602,2]
[365195853,1749528634389,-490.0,0.00016602,2]
[365195854,1749528634399,-490.0,0.00016602,2]
[365195855,1749528634412,-490.0,0.00016602,2]
[365195856,1749528634421,-490.0,0.00016602,2]
[365195857,1749528634431,-490.0,0.00016602,2]
[365195858,1749528634441,-490.0,0.00016602,2]
[365195859,1749528634451,-543.99,0.00016602,2]
[365195860,1749528634464,-490.0,0.00016602,2]
[365195861,1749528634476,-490.0,0.00016602,2]
[365195862,1749528634490,-490.0,0.00016602,2]
[365195863,1749528634504,-381.90779933,0.00016602,2]
[365195864,1749528634517,-490.0,0.00016602,2]
[365195865,1749528634528,-490.0,0.00016602,2]
[365195866,1749528634539,-1206.41,0.00016602,2]
[365195867,1749528634551,-490.0,0.00016602,2]
[365195868,1749528634563,-490.0,0.00016602,2]
[365195869,1749528634575,-504.91,0.00016602,2]
[365195870,1749528634587,-490.0,0.00016602,2]
[365195871,1749528634599,-490.0,0.00016602,2]
[365195872,1749528634611,-490.0,0.00016602,2]
[365195873,1749528634623,-490.0,0.00016602,2]
[365195874,1749528634636,-490.0,0.00016602,2]
[365195875,1749528634647,-490.0,0.00016602,2]
[365195876,1749528634659,-490.0,0.00016602,2]
[365195877,1749528634670,-490.0,0.00016602,2]
[365195878,1749528634683,-627.69,0.00016602,2]
[365195879,1749528634695,-490.0,0.00016602,2]
[365195880,1749528634706,-583.05795973,0.00016602,2]
[365195881,1749528634720,-150.0,0.0001664,2]
[365195882,1749528634732,-150.0,0.00016663,2]
[365195883,1749528634743,-6787.14749726,0.00016667,2]
[365195884,1749528634754,-300.0,0.00016668,2]
[365195885,1749528634766,-150.0,0.0001668,2]
[365195886,1749528634778,-1000.0,0.00016695,2]
[365195887,1749528634789,-151.0,0.00016695,2]
[365195888,1749528634800,-1957.856,0.00016695,2]
[365195889,1749528634811,-152.31147512,0.00016695,2]
[365195890,1749528634822,-500.0,0.00016695,2]
[365195891,1749528634832,-500.0,0.00016695,2]
[365195892,1749528634844,-500.0,0.00016695,2]
[365195893,1749528634855,-500.0,0.00016695,2]
[365195894,1749528634867,-500.0,0.00016695,2]
[365195895,1749528634878,-500.0,0.00016695,2]
[365195896,1749528634886,-500.0,0.00016695,2]
[365195897,1749528634895,-500.0,0.00016695,2]
[365195898,1749528634903,-207.4,0.00016695,2]
[365195899,1749528634912,-500.0,0.00016695,2]
[365195900,1749528634921,-500.0,0.00016695,2]
[365195901,1749528634929,-500.0,0.00016695,2]
[365195902,1749528634940,-500.0,0.00016695,2]
[365195903,1749528634949,-500.0,0.00016695,2]
[365195904,1749528634958,-500.0,0.00016695,2]
[365195905,1749528634968,-500.0,0.00016695,2]
[365195906,1749528634982,-300.0,0.00016695,2]
[365195907,1749528634992,-300.0,0.00016695,2]
[365195908,1749528635004,-300.0,0.00016695,2]
[365195909,1749528635015,-300.0,0.00016695,2]
[365195910,1749528635025,-300.0,0.00016695,2]
[365195911,1749528635037,-300.0,0.00016695,2]
[365195912,1749528635050,-300.0,0.00016695,2]
[365195913,1749528635063,-300.0,0.00016695,2]
[365195914,1749528635073,-300.0,0.00016695,2]
[365195915,1749528635084,-300.0,0.00016695,2]
[365195916,1749528635094,-300.0,0.00016695,2]
[365195917,1749528635104,-300.0,0.00016695,2]
[365195918,1749528635116,-300.0,0.00016695,2]
[365195919,1749528635128,-300.0,0.00016695,2]
[365195920,1749528635141,-66.58363329,0.00016695,2]
[365195921,1749528635198,-233.41636671,0.00016695,2]
[365195922,1749528635209,-328.07323086,0.00016695,2]
[365195923,1749528635223,-150.0,0.00016733,2]
[365195924,1749528635234,-2030.296672,0.0001675,2]
[365195925,1749528635246,-500.0,0.00016766,2]
[365195926,1749528635257,-500.0,0.00016766,2]
[365195927,1749528635268,-189.28762159,0.00016766,2]
[365195928,1749528635280,-469.44851303,0.00016766,2]
[365195929,1749528635292,-206.07031093,0.00016766,2]
[365195930,1749528635302,-206.91182618,0.00016766,2]
[365195931,1749528635314,-406.59498952,0.00016766,2]
[365195932,1749528635326,-490.0,0.00016767,2]
[365195933,1749528635338,-170.0,0.00016767,2]
[365195934,1749528635349,-480.0,0.00016767,2]
[365195935,1749528635360,-490.0,0.00016767,2]
[365195936,1749528635371,-490.0,0.00016767,2]
[365195937,1749528635382,-490.0,0.00016767,2]
[365195938,1749528635393,-480.0,0.00016767,2]
[365195939,1749528635405,-490.0,0.00016767,2]
[365195940,1749528635416,-490.0,0.00016767,2]
[365195941,1749528635427,-490.0,0.00016767,2]
[365195942,1749528635438,-490.0,0.00016767,2]
[365195943,1749528635449,-490.0,0.00016767,2]
[365195944,1749528635460,-490.0,0.00016767,2]
[365195945,1749528635471,-490.0,0.00016767,2]
[365195946,1749528635482,-480.0,0.00016767,2]
[365195947,1749528635493,-490.0,0.00016767,2]
[365195948,1749528635505,-480.0,0.00016767,2]
[365195949,1749528635516,-490.33,0.00016767,2]
[365195950,1749528635527,-490.0,0.00016767,2]
[365195951,1749528635541,-490.0,0.00016767,2]
[365195952,1749528635552,-490.0,0.00016767,2]
[365195953,1749528635564,-490.0,0.00016767,2]
[365195954,1749528635576,-355.70143771,0.00016767,2]
[365195955,1749528635587,-606.85796338,0.00016767,2]
[365195956,1749528635598,-480.0,0.00016767,2]
[365195957,1749528635610,-480.0,0.00016767,2]
[365195958,1749528635622,-490.0,0.00016767,2]
[365195959,1749528635633,-480.0,0.00016767,2]
[365195960,1749528635644,-490.0,0.00016767,2]
[365195961,1749528635655,-490.0,0.00016767,2]
[365195962,1749528635666,-490.0,0.00016767,2]
[365195963,1749528635678,-480.0,0.00016767,2]
[365195964,1749528635689,-490.0,0.00016767,2]
[365195965,1749528635702,-490.0,0.00016767,2]
[365195966,1749528635713,-480.0,0.00016767,2]
[365195967,1749528635723,-414.27495037,0.00016767,2]
[365195968,1749528635734,-480.0,0.00016767,2]
[365195969,1749528635745,-490.0,0.00016767,2]
[365195970,1749528635756,-490.0,0.00016767,2]
[365195971,1749528635767,-490.0,0.00016767,2]
[365195972,1749528635778,-490.0,0.00016767,2]
[365195973,1749528635793,-656.33,0.00016767,2]
[365195974,1749528635805,-814.69,0.00016767,2]
[365195975,1749528635817,-490.0,0.00016767,2]
[365195976,1749528635828,-219.65858297,0.00016767,2]
[365195977,1749528635840,-713.72,0.00016767,2]
[365195978,1749528635852,-896.72,0.00016767,2]
[365195979,1749528635864,-490.0,0.00016767,2]
[365195980,1749528635876,-518.11657837,0.00016767,2]
[365195981,1749528635888,-490.0,0.00016767,2]
[365195982,1749528635900,-510.54,0.00016767,2]
[365195983,1749528635911,-490.0,0.00016767,2]
[365195984,1749528635923,-490.0,0.00016767,2]
[365195985,1749528635935,-237.77562674,0.00016767,2]
[365195986,1749528635947,-225.149918,0.00016767,2]
[365195987,1749528635959,-490.0,0.00016767,2]
[365195988,1749528635970,-490.0,0.00016767,2]
[365195989,1749528635981,-490.0,0.00016767,2]
[365195990,1749528635992,-449.25461962,0.00016767,2]
[365195991,1749528636004,-490.0,0.00016767,2]
[365195992,1749528636015,-490.0,0.00016767,2]
[365195993,1749528636026,-490.0,0.00016767,2]
[365195994,1749528636037,-490.0,0.00016767,2]
[365195995,1749528636048,-490.0,0.00016767,2]
[365195996,1749528636059,-490.0,0.00016767,2]
[365195997,1749528636070,-490.0,0.00016767,2]
[365195998,1749528636082,-586.76,0.00016767,2]
[365195999,1749528636093,-490.0,0.00016767,2]
[365196000,1749528636105,-1928.5,0.00016767,2]
[365196001,1749528636116,-490.0,0.00016767,2]
[365196002,1749528636127,-490.0,0.00016767,2]
[365196003,1749528636139,-490.0,0.00016767,2]
[365196004,1749528636150,-490.0,0.00016767,2]
[365196005,1749528636162,-490.0,0.00016767,2]
[365196006,1749528636174,-490.0,0.00016767,2]
[365196007,1749528636186,-490.0,0.00016767,2]
[365196008,1749528636197,-500.42,0.00016767,2]
[365196009,1749528636208,-602.11,0.00016767,2]
[365196010,1749528636223,-490.0,0.00016767,2]
[365196011,1749528636234,-490.0,0.00016767,2]
[365196012,1749528636245,-490.0,0.00016767,2]
[365196013,1749528636256,-490.0,0.00016767,2]
[365196014,1749528636267,-534.62,0.00016767,2]
[365196015,1749528636278,-490.0,0.00016767,2]
[365196016,1749528636288,-490.0,0.00016767,2]
[365196017,1749528636300,-490.0,0.00016767,2]
[365196018,1749528636312,-263.39,0.00016767,2]
[365196019,1749528636325,-490.0,0.00016767,2]
[365196020,1749528636336,-490.0,0.00016767,2]
[365196021,1749528636347,-490.0,0.00016767,2]
[365196022,1749528636359,-182.84,0.00016767,2]
[365196023,1749528636370,-490.0,0.00016767,2]
[365196024,1749528636381,-490.0,0.00016767,2]
[365196025,1749528636393,-488.78182362,0.00016767,2]
[365196026,1749528636404,-490.0,0.00016767,2]
[365196027,1749528636415,-490.0,0.00016767,2]
[365196028,1749528636426,-429.47332147,0.00016767,2]
[365196029,1749528636436,-470.0,0.00016767,2]
[365196030,1749528636446,-470.0,0.00016767,2]
[365196031,1749528636456,-480.0,0.00016767,2]
[365196032,1749528636468,-490.0,0.00016767,2]
[365196033,1749528636479,-490.0,0.00016767,2]
[365196034,1749528636491,-3221.1349132,0.00016767,2]
[365196035,1749528636505,-15129.25768295,0.00016767,2]
[365196036,1749528636518,-1078.0,0.00016767,2]
[365196038,1749528638199,-2834.92244878,0.00016438,2]
[365196039,1749528638410,-1006.6886836,0.00016438,2]
[365196219,1749528640348,-604.37185262,0.00016438,2]
[365196221,1749528640357,-131.2440608,0.00016438,2]
[365196223,1749528640368,-276.35377821,0.00016438,2]
[365196227,1749528640399,-82.40216099,0.00016438,2]
[365196229,1749528640409,-605.98,0.00016438,2]
[365196231,1749528640419,-490.0,0.00016438,2]
[365196233,1749528640428,-490.0,0.00016438,2]
[365196235,1749528640437,-490.0,0.00016438,2]
[365196237,1749528640447,-271.12289654,0.00016601,2]
[365196239,1749528640456,-490.0,0.00016602,2]
[365196241,1749528640465,-1226.45740385,0.00016767,2]
[365196243,1749528640475,-490.0,0.00016767,2]
[365196245,1749528640484,-490.0,0.00016767,2]
[365196247,1749528640493,-490.0,0.00016767,2]
[365196249,1749528640503,-490.0,0.00016767,2]
[365196251,1749528640514,-490.0,0.00016767,2]
[365196253,1749528640523,-490.0,0.00016767,2]
[365196255,1749528640533,-490.0,0.00016767,2]
[365196257,1749528640542,-916.68,0.00016767,2]
[365196259,1749528640552,-490.0,0.00016767,2]
[365196261,1749528640561,-490.0,0.00016767,2]
[365196263,1749528640570,-490.0,0.00016767,2]
[365196265,1749528640579,-490.0,0.00016767,2]
[365196267,1749528640589,-164.62596958,0.00016767,2]
[365196269,1749528640598,-1238.04,0.00016767,2]
[365196271,1749528640607,-490.0,0.00016767,2]
[365196273,1749528640616,-638.85187145,0.00016767,2]
[365196275,1749528640626,-490.0,0.00016767,2]
[365196277,1749528640635,-528.01,0.00016767,2]
[365196279,1749528640645,-440.0,0.00016767,2]
[365196281,1749528640655,-480.0,0.00016767,2]
[365196283,1749528640665,-490.0,0.00016767,2]
[365196285,1749528640675,-490.0,0.00016767,2]
[365196287,1749528640688,-490.0,0.00016767,2]
[365196289,1749528640697,-1206.41,0.00016767,2]
[365196291,1749528640707,-490.0,0.00016767,2]
[365196293,1749528640716,-480.0,0.00016767,2]
[365196295,1749528640725,-504.91,0.00016767,2]
[365196297,1749528640735,-490.0,0.00016767,2]
[365196299,1749528640744,-490.0,0.00016767,2]
[365196301,1749528640754,-490.0,0.00016767,2]
[365196303,1749528640764,-490.0,0.00016767,2]
[365196305,1749528640773,-490.0,0.00016767,2]
[365196307,1749528640782,-490.0,0.00016767,2]
[365196309,1749528640791,-490.0,0.00016767,2]
[365196311,1749528640800,-490.0,0.00016767,2]
[365196313,1749528640809,-627.69,0.00016767,2]
[365196315,1749528640819,-490.0,0.00016767,2]
[365196317,1749528640828,-490.0,0.00016767,2]
[365196319,1749528640837,-174.97167064,0.0001677,2]
[365196321,1749528640846,-341.17340806,0.00016789,2]
[365196323,1749528640856,-500.0,0.00016789,2]
[365196325,1749528640865,-500.0,0.00016789,2]
[365196327,1749528640874,-2105.41764886,0.00016805,2]
[365196329,1749528640884,-150.0,0.00016814,2]
[365196331,1749528640893,-500.0,0.00016822,2]
[365196332,1749528640903,-150.0,0.00016822,2]
[365196334,1749528640912,-500.0,0.00016822,2]
[365196337,1749528640921,-150.0,0.00016822,2]
[365196338,1749528640931,-150.0,0.00016822,2]
[365196340,1749528640940,-500.0,0.00016822,2]
[365196342,1749528640949,-151.96540863,0.00016822,2]
[365196344,1749528640959,-152.28309491,0.00016822,2]
[365196346,1749528640968,-150.0,0.00016822,2]
[365196348,1749528640977,-500.0,0.00016822,2]
[365196350,1749528640986,-150.0,0.00016822,2]
[365196352,1749528640995,-500.0,0.00016822,2]
[365196354,1749528641005,-150.0,0.00016822,2]
[365196356,1749528641014,-500.0,0.00016822,2]
[365196358,1749528641023,-162.41240127,0.00016822,2]
[365196360,1749528641032,-150.0,0.00016822,2]
[365196362,1749528641041,-150.0,0.00016822,2]
[365196363,1749528641051,-221.02912238,0.00016822,2]
[365196364,1749528641060,-500.0,0.00016822,2]
[365196365,1749528641070,-150.0,0.00016822,2]
[365196366,1749528641079,-500.0,0.00016822,2]
[365196367,1749528641088,-259.56702938,0.00016847,2]
[365196368,1749528641098,-500.0,0.00016849,2]
[365196369,1749528641108,-150.0,0.00016849,2]
[365196370,1749528641117,-509.12556139,0.00016849,2]
[365196371,1749528641126,-158.48126938,0.00016849,2]
[365196372,1749528641136,-150.0,0.00016849,2]
[365196373,1749528641145,-500.0,0.00016849,2]
[365196375,1749528641155,-270.54493989,0.00016849,2]
[365196377,1749528641165,-500.0,0.00016849,2]
[365196378,1749528641175,-150.0,0.00016849,2]
[365196380,1749528641184,-500.0,0.00016849,2]
[365196382,1749528641193,-254.52961426,0.00016849,2]
[365196384,1749528641203,-500.0,0.00016849,2]
[365196386,1749528641212,-150.0,0.00016849,2]
[365196388,1749528641222,-150.0,0.00016849,2]
[365196390,1749528641231,-557.09317732,0.00016849,2]
[365196392,1749528641241,-500.0,0.00016849,2]
[365196394,1749528641250,-329.0,0.00016857,3]
[365196396,1749528641260,-150.0,0.0001686,2]
[365196398,1749528641270,-2183.31810187,0.0001686,2]
[365196400,1749528641279,-500.0,0.00016877,2]
[365196402,1749528641289,-150.0,0.00016877,2]
[365196404,1749528641298,-170.70924631,0.00016877,2]
[365196406,1749528641309,-500.0,0.00016877,2]
[365196408,1749528641318,-387.02220979,0.00016877,2]
[365196410,1749528641328,-150.0,0.00016877,2]
[365196412,1749528641337,-500.0,0.00016877,2]
[365196414,1749528641346,-500.0,0.00016877,2]
[365196416,1749528641356,-205.82987276,0.00016877,2]
[365196418,1749528641365,-153.66329297,0.00016877,2]
[365196420,1749528641374,-500.0,0.00016877,2]
[365196422,1749528641383,-150.0,0.00016877,2]
[365196424,1749528641392,-800.072,0.00016879,2]
[365196426,1749528641401,-802.0,0.00016885,2]
[365196429,1749528641420,-637.0,0.00016885,2]
[365196431,1749528641431,-927.0,0.00016885,2]
[365196433,1749528641440,-1275.0,0.00016885,2]
[365196435,1749528641450,-207.41439116,0.00016885,2]
[365196437,1749528641460,-150.0,0.00016897,2]
[365196439,1749528641469,-500.0,0.00016904,2]
[365196441,1749528641479,-150.0,0.00016904,2]
[365196443,1749528641488,-500.0,0.00016904,2]
[365196445,1749528641498,-150.0,0.00016904,2]
[365196447,1749528641507,-500.0,0.00016904,2]
[365196449,1749528641517,-500.0,0.00016904,2]
[365196451,1749528641527,-500.0,0.00016904,2]
[365196453,1749528641536,-558.0,0.00016908,2]
[365196455,1749528641546,-2001.0,0.00016908,2]
[365196457,1749528641555,-590.0,0.00016908,2]
[365196459,1749528641565,-1256.0,0.00016908,2]
[365196461,1749528641575,-1159.0,0.00016908,2]
[365196463,1749528641584,-2264.10087164,0.00016915,2]
[365196465,1749528641593,-430.0,0.00016931,2]
[365196467,1749528641603,-490.0,0.00016931,2]
[365196469,1749528641612,-490.0,0.00016931,2]
[365196471,1749528641621,-500.0,0.00016931,2]
[365196473,1749528641631,-490.0,0.00016931,2]
[365196475,1749528641641,-490.0,0.00016931,2]
[365196477,1749528641650,-490.0,0.00016931,2]
[365196479,1749528641659,-434.67,0.00016931,2]
[365196481,1749528641669,-490.0,0.00016931,2]
[365196483,1749528641679,-480.0,0.00016931,2]
[365196485,1749528641690,-490.0,0.00016931,2]
[365196487,1749528641700,-490.0,0.00016931,2]
[365196489,1749528641709,-490.33,0.00016931,2]
[365196491,1749528641718,-490.0,0.00016931,2]
[365196493,1749528641728,-490.0,0.00016931,2]
[365196495,1749528641737,-490.0,0.00016931,2]
[365196497,1749528641747,-490.0,0.00016931,2]
[365196499,1749528641756,-183.54980345,0.00016931,2]
[365196501,1749528641766,-490.0,0.00016931,2]
[365196503,1749528641776,-490.0,0.00016931,2]
[365196505,1749528641785,-490.0,0.00016931,2]
[365196507,1749528641794,-490.0,0.00016931,2]
[365196509,1749528641804,-301.51,0.00016931,2]
[365196511,1749528641813,-490.0,0.00016931,2]
[365196513,1749528641823,-490.0,0.00016931,2]
[365196515,1749528641833,-656.33,0.00016931,2]
[365196517,1749528641846,-814.69,0.00016931,2]
[365196519,1749528641859,-490.0,0.00016931,2]
[365196521,1749528641869,-713.72,0.00016931,2]
[365196523,1749528641879,-896.72,0.00016931,2]
[365196525,1749528641888,-490.0,0.00016931,2]
[365196527,1749528641898,-490.0,0.00016931,2]
[365196529,1749528641907,-721.19,0.00016931,2]
[365196531,1749528641916,-510.54,0.00016931,2]
[365196533,1749528641926,-490.0,0.00016931,2]
[365196535,1749528641936,-490.0,0.00016931,2]
[365196537,1749528641946,-490.0,0.00016931,2]
[365196539,1749528641955,-490.0,0.00016931,2]
[365196541,1749528641965,-490.0,0.00016931,2]
[365196543,1749528641974,-342.25935907,0.00016931,2]
[365196545,1749528641984,-490.0,0.00016931,2]
[365196547,1749528641994,-490.0,0.00016931,2]
[365196549,1749528642004,-490.0,0.00016931,2]
[365196551,1749528642014,-490.0,0.00016931,2]
[365196553,1749528642026,-490.0,0.00016931,2]
[365196555,1749528642036,-490.0,0.00016931,2]
[365196557,1749528642045,-586.76,0.00016931,2]
[365196559,1749528642054,-490.0,0.00016931,2]
[365196561,1749528642064,-1928.5,0.00016931,2]
[365196563,1749528642073,-481.34,0.00016931,2]
[365196565,1749528642083,-490.0,0.00016931,2]
[365196567,1749528642092,-490.0,0.00016931,2]
[365196569,1749528642102,-490.0,0.00016931,2]
[365196571,1749528642111,-490.0,0.00016931,2]
[365196573,1749528642121,-490.0,0.00016931,2]
[365196576,1749528642134,-490.0,0.00016931,2]
[365196578,1749528642147,-500.42,0.00016931,2]
[365196580,1749528642158,-602.11,0.00016931,2]
[365196582,1749528642168,-490.0,0.00016931,2]
[365196584,1749528642178,-490.0,0.00016931,2]
[365196586,1749528642188,-490.0,0.00016931,2]
[365196588,1749528642198,-490.0,0.00016931,2]
[365196590,1749528642207,-500.0,0.00016931,2]
[365196592,1749528642217,-534.62,0.00016931,2]
[365196594,1749528642227,-490.0,0.00016931,2]
[365196596,1749528642236,-490.0,0.00016931,2]
[365196598,1749528642248,-490.0,0.00016931,2]
[365196600,1749528642257,-490.0,0.00016931,2]
[365196602,1749528642267,-490.0,0.00016931,2]
[365196604,1749528642277,-490.0,0.00016931,2]
[365196606,1749528642287,-490.0,0.00016931,2]
[365196608,1749528642297,-490.0,0.00016931,2]
[365196610,1749528642306,-490.0,0.00016931,2]
[365196612,1749528642316,-490.0,0.00016931,2]
[365196614,1749528642325,-490.0,0.00016931,2]
[365196616,1749528642334,-490.0,0.00016931,2]
[365196618,1749528642344,-20654.85,0.00016931,2]
[365196620,1749528642353,-490.0,0.00016931,2]
[365196622,1749528642363,-388.08776163,0.00016931,2]
[365196624,1749528642373,-196.4577457,0.00016931,2]
[365196626,1749528642383,-490.0,0.00016931,2]
[365196628,1749528642393,-490.0,0.00016931,2]
[365196630,1749528642403,-490.0,0.00016931,2]
[365196632,1749528642413,-916.68,0.00016931,2]
[365196634,1749528642422,-490.0,0.00016931,2]
[365196636,1749528642431,-490.0,0.00016931,2]
[365196638,1749528642441,-490.0,0.00016931,2]
[365196640,1749528642452,-490.0,0.00016931,2]
[365196642,1749528642461,-1238.04,0.00016931,2]
[365196644,1749528642472,-478.67293627,0.00016931,2]
[365196646,1749528642485,-622.76,0.00016931,2]
[365196648,1749528642495,-490.0,0.00016931,2]
[365196650,1749528642505,-490.0,0.00016931,2]
[365196652,1749528642515,-470.0,0.00016931,2]
[365196654,1749528642524,-1206.41,0.00016931,2]
[365196656,1749528642534,-490.0,0.00016931,2]
[365196658,1749528642543,-504.91,0.00016931,2]
[365196660,1749528642553,-490.0,0.00016931,2]
[365196662,1749528642563,-490.0,0.00016931,2]
[365196664,1749528642573,-490.0,0.00016931,2]
[365196666,1749528642582,-490.0,0.00016931,2]
[365196668,1749528642592,-490.0,0.00016931,2]
[365196670,1749528642602,-490.0,0.00016931,2]
[365196673,1749528642611,-490.0,0.00016931,2]
[365196675,1749528642621,-490.0,0.00016931,2]
[365196677,1749528642630,-627.69,0.00016931,2]
[365196679,1749528642640,-490.0,0.00016931,2]